[Event "Titled Tuesday Blitz March 07 Early 2023"]
[White "Goltseva, Ekaterina"]
[Black "Prieto Aranguren, Alain"]
[WhiteFideId "24173770"]
[BlackFideId "2268906"]
[WhiteElo "2200"]
[BlackElo "2209"]
[Result "1-0"]
[Round "02"]
[TimeControl "180+2"]
[Date "2023.03.07"]
[WhiteClock "0:00:03"]
[BlackClock "0:00:04"]

1. Nf3 {[%clk 0:03:00]}  g6 {[%clk 0:02:56]} 2. d4 {[%clk 0:02:55]}  Bg7 {[%clk 0:02:55]} 3. e3 {[%clk 0:02:51]}  c5 {[%clk 0:02:54]} 4. dxc5 {[%clk 0:02:47]}  Na6 {[%clk 0:02:52]} 5. Bc4 {[%clk 0:02:27]}  Nxc5 {[%clk 0:02:50]} 6. O-O {[%clk 0:02:27]}  Nf6 {[%clk 0:02:49]} 7. Ne5 {[%clk 0:02:13]}  O-O {[%clk 0:02:47]} 8. b4 {[%clk 0:02:12]}  Nfe4 {[%clk 0:02:35]} 9. Bb2 {[%clk 0:01:46]}  Na4 {[%clk 0:02:33]} 10. Bd4 {[%clk 0:01:33]}  d5 {[%clk 0:02:25]} 11. Bb3 {[%clk 0:01:27]}  Nb6 {[%clk 0:02:18]} 12. Nd2 {[%clk 0:01:21]}  Bf5 {[%clk 0:02:13]} 13. c4 {[%clk 0:01:06]}  Nxd2 {[%clk 0:02:09]} 14. Qxd2 {[%clk 0:01:01]}  dxc4 {[%clk 0:02:07]} 15. Nxc4 {[%clk 0:01:00]}  Bxd4 {[%clk 0:02:05]} 16. exd4 {[%clk 0:00:57]}  Nd5 {[%clk 0:01:59]} 17. Ne5 {[%clk 0:00:43]}  Be6 {[%clk 0:01:21]} 18. Rfd1 {[%clk 0:00:33]}  Rc8 {[%clk 0:01:07]} 19. Rac1 {[%clk 0:00:30]}  Rxc1 {[%clk 0:01:06]} 20. Qxc1 {[%clk 0:00:28]}  Qb6 {[%clk 0:01:02]} 21. a3 {[%clk 0:00:24]}  Rc8 {[%clk 0:00:57]} 22. Qd2 {[%clk 0:00:20]}  a5 {[%clk 0:00:56]} 23. Bxd5 {[%clk 0:00:10]}  Bxd5 {[%clk 0:00:55]} 24. bxa5 {[%clk 0:00:10]}  Qb3 {[%clk 0:00:49]} 25. h4 {[%clk 0:00:08]}  Rc2 {[%clk 0:00:47]} 26. Qe1 {[%clk 0:00:04]}  Qxa3 {[%clk 0:00:34]} 27. h5 {[%clk 0:00:04]}  Qa2 {[%clk 0:00:17]} 28. Ng4 {[%clk 0:00:04]}  Re2 {[%clk 0:00:15]} 29. Qf1 {[%clk 0:00:04]}  Re4 {[%clk 0:00:12]} 30. Ne3 {[%clk 0:00:03]}  Bc6 {[%clk 0:00:10]} 31. h6 {[%clk 0:00:02]}  Qxa5 {[%clk 0:00:07]} 32. Qd3 {[%clk 0:00:03]}  Qd8 {[%clk 0:00:04]} 33. d5 {[%clk 0:00:03]} 1-0


[Site "https://www.chess.com"]

[Event "Titled Tuesday Blitz March 07 Early 2023"]
[White "laurynaszaveckis"]
[Black "Grunberg, Mihai-Lucian"]
[BlackFideId "1204149"]
[WhiteElo "2274"]
[BlackElo "2363"]
[Result "1-0"]
[Round "02"]
[TimeControl "180+2"]
[Date "2023.03.07"]
[WhiteClock "0:00:26"]
[BlackClock "0:01:40"]

1. d4 {[%clk 0:03:00]}  f5 {[%clk 0:02:59]} 2. Bg5 {[%clk 0:02:58]}  g6 {[%clk 0:02:59]} 3. Nc3 {[%clk 0:02:55]}  Nh6 {[%clk 0:03:00]} 4. e4 {[%clk 0:02:35]}  Nf7 {[%clk 0:02:58]} 5. Be3 {[%clk 0:02:24]}  fxe4 {[%clk 0:02:58]} 6. Nxe4 {[%clk 0:02:24]}  Bg7 {[%clk 0:02:57]} 7. Qd2 {[%clk 0:02:22]}  d5 {[%clk 0:02:57]} 8. Ng5 {[%clk 0:02:20]}  O-O {[%clk 0:02:54]} 9. Nxf7 {[%clk 0:02:14]}  Rxf7 {[%clk 0:02:54]} 10. O-O-O {[%clk 0:02:11]}  c6 {[%clk 0:02:47]} 11. h4 {[%clk 0:01:56]}  h5 {[%clk 0:02:45]} 12. Nf3 {[%clk 0:01:52]}  Bg4 {[%clk 0:02:41]} 13. Be2 {[%clk 0:01:47]}  Nd7 {[%clk 0:02:40]} 14. Ng5 {[%clk 0:01:44]}  Rf6 {[%clk 0:02:33]} 15. Bxg4 {[%clk 0:01:41]}  hxg4 {[%clk 0:02:33]} 16. h5 {[%clk 0:01:41]}  gxh5 {[%clk 0:02:30]} 17. Rxh5 {[%clk 0:01:41]}  Nf8 {[%clk 0:02:24]} 18. Rdh1 {[%clk 0:01:36]}  Qe8 {[%clk 0:02:20]} 19. Qe2 {[%clk 0:01:29]}  Qd7 {[%clk 0:02:13]} 20. R1h4 {[%clk 0:01:24]}  Rg6 {[%clk 0:02:01]} 21. Rxg4 {[%clk 0:01:10]}  Qf5 {[%clk 0:01:54]} 22. Rf4 {[%clk 0:01:00]}  Qd7 {[%clk 0:01:50]} 23. Rfh4 {[%clk 0:00:46]}  Ne6 {[%clk 0:01:45]} 24. Rh8+ {[%clk 0:00:28]}  Bxh8 {[%clk 0:01:45]} 25. Rxh8+ {[%clk 0:00:28]}  Kxh8 {[%clk 0:01:45]} 26. Qh5+ {[%clk 0:00:28]}  Kg8 {[%clk 0:01:39]} 27. Qh7+ {[%clk 0:00:26]}  Kf8 {[%clk 0:01:40]} 28. Qf7# {[%clk 0:00:26]} 1-0


[Site "https://www.chess.com"]

[Event "Titled Tuesday Blitz March 07 Early 2023"]
[White "Eynullayev, Atilla"]
[Black "SicilianPanzer"]
[WhiteFideId "13413570"]
[WhiteElo "2181"]
[BlackElo "2260"]
[Result "1-0"]
[Round "02"]
[TimeControl "180+2"]
[Date "2023.03.07"]
[WhiteClock "0:00:09"]
[BlackClock "0:00:01"]

1. d4 {[%clk 0:03:00]}  Nf6 {[%clk 0:02:57]} 2. c4 {[%clk 0:02:44]}  e6 {[%clk 0:02:56]} 3. Nc3 {[%clk 0:02:44]}  d5 {[%clk 0:02:56]} 4. cxd5 {[%clk 0:02:44]}  exd5 {[%clk 0:02:55]} 5. Bg5 {[%clk 0:02:43]}  c6 {[%clk 0:02:55]} 6. Qc2 {[%clk 0:02:43]}  Be7 {[%clk 0:02:54]} 7. e3 {[%clk 0:02:44]}  a5 {[%clk 0:02:51]} 8. Bd3 {[%clk 0:02:44]}  Na6 {[%clk 0:02:50]} 9. a3 {[%clk 0:02:44]}  Nc7 {[%clk 0:02:50]} 10. Nf3 {[%clk 0:02:43]}  Ne6 {[%clk 0:02:50]} 11. Bh4 {[%clk 0:02:42]}  g6 {[%clk 0:02:49]} 12. Ne5 {[%clk 0:02:41]}  Ng7 {[%clk 0:02:37]} 13. h3 {[%clk 0:02:41]}  O-O {[%clk 0:02:32]} 14. g4 {[%clk 0:02:40]}  Nd7 {[%clk 0:02:26]} 15. Bg3 {[%clk 0:02:30]}  f6 {[%clk 0:01:45]} 16. Nxg6 {[%clk 0:02:28]}  hxg6 {[%clk 0:01:43]} 17. Bxg6 {[%clk 0:02:28]}  b5 {[%clk 0:01:24]} 18. Bh7+ {[%clk 0:02:28]}  Kh8 {[%clk 0:01:23]} 19. Qg6 {[%clk 0:02:29]}  Re8 {[%clk 0:00:35]} 20. Qh6 {[%clk 0:02:25]}  Nf8 {[%clk 0:00:32]} 21. Bd3+ {[%clk 0:01:45]}  Kg8 {[%clk 0:00:31]} 22. g5 {[%clk 0:01:45]}  Bf5 {[%clk 0:00:12]} 23. Bc7 {[%clk 0:00:25]}  Qxc7 {[%clk 0:00:10]} 24. gxf6 {[%clk 0:00:26]}  Bxf6 {[%clk 0:00:06]} 25. Bxf5 {[%clk 0:00:26]}  Nxf5 {[%clk 0:00:05]} 26. Qxf6 {[%clk 0:00:27]}  Ng7 {[%clk 0:00:02]} 27. Rg1 {[%clk 0:00:27]}  b4 {[%clk 0:00:02]} 28. Ne2 {[%clk 0:00:27]}  bxa3 {[%clk 0:00:01]} 29. Rxa3 {[%clk 0:00:27]}  Qf7 {[%clk 0:00:01]} 30. Qh6 {[%clk 0:00:23]}  Ra7 {[%clk 0:00:01]} 31. Nf4 {[%clk 0:00:20]}  Rb8 {[%clk 0:00:01]} 32. b3 {[%clk 0:00:19]}  a4 {[%clk 0:00:01]} 33. Nh5 {[%clk 0:00:08]}  Ne6 {[%clk 0:00:02]} 34. Nf6+ {[%clk 0:00:08]}  Kf8 {[%clk 0:00:02]} 35. Qh8+ {[%clk 0:00:08]}  Ke7 {[%clk 0:00:02]} 36. Qxb8 {[%clk 0:00:09]}  Kxf6 {[%clk 0:00:01]} 37. Qe5+ {[%clk 0:00:07]}  Ke7 {[%clk 0:00:01]} 38. Rxa4 {[%clk 0:00:08]}  Rxa4 {[%clk 0:00:01]} 39. bxa4 {[%clk 0:00:09]} 1-0


[Site "https://www.chess.com"]

[Event "Titled Tuesday Blitz March 07 Early 2023"]
[White "Theytookourjobs"]
[Black "Bruned, Yvain"]
[BlackFideId "2250292"]
[WhiteElo "2251"]
[BlackElo "2183"]
[Result "1/2-1/2"]
[Round "02"]
[TimeControl "180+2"]
[Date "2023.03.07"]
[WhiteClock "0:00:16"]
[BlackClock "0:00:20"]

1. d4 {[%clk 0:03:00]}  b6 {[%clk 0:03:00]} 2. e3 {[%clk 0:02:56]}  Bb7 {[%clk 0:03:00]} 3. f4 {[%clk 0:02:57]}  f5 {[%clk 0:02:59]} 4. Nf3 {[%clk 0:02:58]}  e6 {[%clk 0:02:59]} 5. c4 {[%clk 0:02:58]}  Nf6 {[%clk 0:02:59]} 6. Nc3 {[%clk 0:02:58]}  d5 {[%clk 0:03:00]} 7. Be2 {[%clk 0:02:57]}  Bd6 {[%clk 0:02:59]} 8. O-O {[%clk 0:02:57]}  O-O {[%clk 0:02:58]} 9. b3 {[%clk 0:02:56]}  Nbd7 {[%clk 0:02:55]} 10. a4 {[%clk 0:02:57]}  a5 {[%clk 0:02:54]} 11. Ba3 {[%clk 0:02:56]}  Bxa3 {[%clk 0:02:50]} 12. Rxa3 {[%clk 0:02:57]}  Qe7 {[%clk 0:02:51]} 13. Qc1 {[%clk 0:02:56]}  c5 {[%clk 0:02:49]} 14. Nb5 {[%clk 0:02:55]}  Rac8 {[%clk 0:02:47]} 15. Ne5 {[%clk 0:02:39]}  Ba6 {[%clk 0:02:41]} 16. Na7 {[%clk 0:01:59]}  Rc7 {[%clk 0:02:30]} 17. Nac6 {[%clk 0:01:58]}  Qd6 {[%clk 0:02:28]} 18. Nxd7 {[%clk 0:01:58]}  Nxd7 {[%clk 0:02:22]} 19. Ne5 {[%clk 0:01:52]}  cxd4 {[%clk 0:02:18]} 20. Nxd7 {[%clk 0:01:52]}  Qxd7 {[%clk 0:02:14]} 21. Rd1 {[%clk 0:01:31]}  dxe3 {[%clk 0:01:55]} 22. Qxe3 {[%clk 0:01:31]}  Qd6 {[%clk 0:01:41]} 23. Ra2 {[%clk 0:01:25]}  Qc5 {[%clk 0:01:40]} 24. Qxc5 {[%clk 0:01:11]}  Rxc5 {[%clk 0:01:41]} 25. cxd5 {[%clk 0:01:07]}  Bxe2 {[%clk 0:01:29]} 26. Rxe2 {[%clk 0:01:08]}  exd5 {[%clk 0:01:28]} 27. Re7 {[%clk 0:01:07]}  Rd8 {[%clk 0:01:24]} 28. Rb7 {[%clk 0:01:04]}  Rc6 {[%clk 0:01:21]} 29. Re1 {[%clk 0:01:04]}  d4 {[%clk 0:01:20]} 30. Ree7 {[%clk 0:01:04]}  Rg6 {[%clk 0:01:21]} 31. Red7 {[%clk 0:00:54]}  Rxd7 {[%clk 0:01:13]} 32. Rxd7 {[%clk 0:00:54]}  Rc6 {[%clk 0:01:13]} 33. Rxd4 {[%clk 0:00:52]}  Rc1+ {[%clk 0:01:11]} 34. Kf2 {[%clk 0:00:51]}  Rb1 {[%clk 0:01:12]} 35. Rd3 {[%clk 0:00:47]}  Kf7 {[%clk 0:01:08]} 36. h3 {[%clk 0:00:32]}  Rb2+ {[%clk 0:01:06]} 37. Kf3 {[%clk 0:00:28]}  h5 {[%clk 0:01:05]} 38. Kg3 {[%clk 0:00:26]}  g6 {[%clk 0:01:03]} 39. Kf3 {[%clk 0:00:26]}  Ke6 {[%clk 0:01:01]} 40. g3 {[%clk 0:00:26]}  Rh2 {[%clk 0:00:59]} 41. h4 {[%clk 0:00:26]}  Rc2 {[%clk 0:00:58]} 42. Ke3 {[%clk 0:00:27]}  Rc7 {[%clk 0:00:55]} 43. Kd2 {[%clk 0:00:27]}  Rc6 {[%clk 0:00:52]} 44. Ke3 {[%clk 0:00:27]}  Ke7 {[%clk 0:00:50]} 45. Kd4 {[%clk 0:00:27]}  Kd6 {[%clk 0:00:47]} 46. Ke3+ {[%clk 0:00:27]}  Ke6 {[%clk 0:00:47]} 47. Kd4 {[%clk 0:00:27]}  Rd6+ {[%clk 0:00:44]} 48. Kc3 {[%clk 0:00:24]}  Rxd3+ {[%clk 0:00:43]} 49. Kxd3 {[%clk 0:00:24]}  Kd5 {[%clk 0:00:43]} 50. Ke3 {[%clk 0:00:22]}  Kc5 {[%clk 0:00:42]} 51. Kd3 {[%clk 0:00:23]}  Kb4 {[%clk 0:00:41]} 52. Kc2 {[%clk 0:00:23]}  b5 {[%clk 0:00:26]} 53. axb5 {[%clk 0:00:24]}  Kxb5 {[%clk 0:00:26]} 54. Kc3 {[%clk 0:00:21]}  Kc5 {[%clk 0:00:26]} 55. Kc2 {[%clk 0:00:20]}  Kd4 {[%clk 0:00:22]} 56. Kd2 {[%clk 0:00:20]}  Ke4 {[%clk 0:00:22]} 57. Ke2 {[%clk 0:00:20]}  Kd5 {[%clk 0:00:22]} 58. Kd3 {[%clk 0:00:20]}  Kc5 {[%clk 0:00:22]} 59. Kc3 {[%clk 0:00:21]}  Kb5 {[%clk 0:00:23]} 60. Kc2 {[%clk 0:00:21]}  Kb6 {[%clk 0:00:20]} 61. Kc3 {[%clk 0:00:21]}  Kc5 {[%clk 0:00:20]} 62. Kd3 {[%clk 0:00:19]}  Kb4 {[%clk 0:00:20]} 63. Kc2 {[%clk 0:00:20]}  Ka3 {[%clk 0:00:20]} 64. Kc3 {[%clk 0:00:17]}  Ka2 {[%clk 0:00:20]} 65. Kc2 {[%clk 0:00:17]}  Ka3 {[%clk 0:00:20]} 66. Kc3 {[%clk 0:00:17]}  Ka2 {[%clk 0:00:20]} 67. Kc2 {[%clk 0:00:18]}  Ka1 {[%clk 0:00:20]} 68. Kc1 {[%clk 0:00:16]}  Ka2 {[%clk 0:00:20]} 69. Kc2 {[%clk 0:00:16]} 1/2-1/2


[Site "https://www.chess.com"]

[Event "Titled Tuesday Blitz March 07 Early 2023"]
[White "Mohammed, Dilshad"]
[Black "Thiel, Thomas"]
[WhiteFideId "5050421"]
[BlackFideId "4615964"]
[WhiteElo "2112"]
[BlackElo "2244"]
[Result "1-0"]
[Round "02"]
[TimeControl "180+2"]
[Date "2023.03.07"]
[WhiteClock "0:00:35"]
[BlackClock "0:00:07"]

1. Nf3 {[%clk 0:02:58]}  Nf6 {[%clk 0:02:58]} 2. c4 {[%clk 0:02:59]}  g6 {[%clk 0:02:57]} 3. Nc3 {[%clk 0:02:59]}  Bg7 {[%clk 0:02:55]} 4. e4 {[%clk 0:02:59]}  e5 {[%clk 0:02:55]} 5. d4 {[%clk 0:03:00]}  exd4 {[%clk 0:02:54]} 6. Nxd4 {[%clk 0:03:01]}  O-O {[%clk 0:02:52]} 7. Be2 {[%clk 0:03:01]}  Re8 {[%clk 0:02:52]} 8. f3 {[%clk 0:03:02]}  c6 {[%clk 0:02:52]} 9. O-O {[%clk 0:03:02]}  d5 {[%clk 0:02:52]} 10. cxd5 {[%clk 0:03:02]}  cxd5 {[%clk 0:02:52]} 11. Ndb5 {[%clk 0:02:57]}  Qb6+ {[%clk 0:02:47]} 12. Kh1 {[%clk 0:02:56]}  dxe4 {[%clk 0:02:46]} 13. fxe4 {[%clk 0:02:56]}  Nxe4 {[%clk 0:02:30]} 14. Nxe4 {[%clk 0:02:56]}  Rxe4 {[%clk 0:02:29]} 15. Nd6 {[%clk 0:02:50]}  Rxe2 {[%clk 0:02:28]} 16. Nxc8 {[%clk 0:02:45]}  Qe6 {[%clk 0:02:16]} 17. Qd8+ {[%clk 0:02:35]}  Qe8 {[%clk 0:02:14]} 18. Qxe8+ {[%clk 0:02:33]}  Rxe8 {[%clk 0:02:15]} 19. Nd6 {[%clk 0:02:33]}  Rf8 {[%clk 0:02:13]} 20. Nxb7 {[%clk 0:02:33]}  Nc6 {[%clk 0:02:13]} 21. Nc5 {[%clk 0:02:33]}  Rac8 {[%clk 0:01:57]} 22. Be3 {[%clk 0:02:31]}  Bxb2 {[%clk 0:01:54]} 23. Rab1 {[%clk 0:02:31]}  Bd4 {[%clk 0:01:53]} 24. Bxd4 {[%clk 0:02:30]}  Nxd4 {[%clk 0:01:52]} 25. Nd7 {[%clk 0:02:30]}  Rfd8 {[%clk 0:01:52]} 26. Nf6+ {[%clk 0:02:29]}  Kg7 {[%clk 0:01:49]} 27. Ne4 {[%clk 0:02:27]}  Rc7 {[%clk 0:01:42]} 28. Rfd1 {[%clk 0:02:23]}  Rcd7 {[%clk 0:01:35]} 29. Nc5 {[%clk 0:02:19]}  Rd5 {[%clk 0:01:34]} 30. Ne4 {[%clk 0:02:10]}  Nc6 {[%clk 0:01:29]} 31. Rdc1 {[%clk 0:02:09]}  Ne5 {[%clk 0:01:26]} 32. h3 {[%clk 0:02:09]}  Rd4 {[%clk 0:01:24]} 33. Nc3 {[%clk 0:02:00]}  Nd3 {[%clk 0:01:23]} 34. Rf1 {[%clk 0:01:58]}  Nc5 {[%clk 0:01:17]} 35. Rb5 {[%clk 0:01:54]}  Rc4 {[%clk 0:01:16]} 36. Rf3 {[%clk 0:01:47]}  Rd2 {[%clk 0:01:14]} 37. Ra5 {[%clk 0:01:38]}  Rc2 {[%clk 0:01:10]} 38. Nd5 {[%clk 0:01:34]}  a6 {[%clk 0:01:01]} 39. Ne3 {[%clk 0:01:24]}  Rc1+ {[%clk 0:00:59]} 40. Kh2 {[%clk 0:01:25]}  R4c3 {[%clk 0:00:59]} 41. a3 {[%clk 0:01:12]}  Ne4 {[%clk 0:00:57]} 42. Rxa6 {[%clk 0:01:07]}  Nd2 {[%clk 0:00:57]} 43. Rf2 {[%clk 0:00:47]}  Rxe3 {[%clk 0:00:42]} 44. Rxd2 {[%clk 0:00:47]}  Rcc3 {[%clk 0:00:39]} 45. Ra2 {[%clk 0:00:47]}  Re1 {[%clk 0:00:31]} 46. a4 {[%clk 0:00:46]}  Rcc1 {[%clk 0:00:30]} 47. a5 {[%clk 0:00:45]}  Ra1 {[%clk 0:00:30]} 48. Rxa1 {[%clk 0:00:43]}  Rxa1 {[%clk 0:00:31]} 49. Ra8 {[%clk 0:00:43]}  h5 {[%clk 0:00:29]} 50. h4 {[%clk 0:00:43]}  Kf6 {[%clk 0:00:29]} 51. a6 {[%clk 0:00:41]}  Kf5 {[%clk 0:00:27]} 52. Kg3 {[%clk 0:00:41]}  f6 {[%clk 0:00:26]} 53. Kh3 {[%clk 0:00:40]}  Ra3+ {[%clk 0:00:25]} 54. g3 {[%clk 0:00:40]}  Ra2 {[%clk 0:00:25]} 55. Ra7 {[%clk 0:00:39]}  Ra1 {[%clk 0:00:24]} 56. Kg2 {[%clk 0:00:39]}  Ra2+ {[%clk 0:00:24]} 57. Kh3 {[%clk 0:00:39]}  Ra1 {[%clk 0:00:23]} 58. Ra8 {[%clk 0:00:40]}  Ra2 {[%clk 0:00:21]} 59. a7 {[%clk 0:00:40]}  Ra3 {[%clk 0:00:19]} 60. Kg2 {[%clk 0:00:39]}  Kg4 {[%clk 0:00:17]} 61. Kf2 {[%clk 0:00:38]}  Ra2+ {[%clk 0:00:14]} 62. Ke3 {[%clk 0:00:38]}  Kxg3 {[%clk 0:00:14]} 63. Rg8 {[%clk 0:00:38]}  Rxa7 {[%clk 0:00:12]} 64. Rxg6+ {[%clk 0:00:39]}  Kxh4 {[%clk 0:00:08]} 65. Rxf6 {[%clk 0:00:39]}  Kh3 {[%clk 0:00:08]} 66. Kf2 {[%clk 0:00:37]}  h4 {[%clk 0:00:07]} 67. Kg1 {[%clk 0:00:35]} 1-0


[Site "https://www.chess.com"]

[Event "Titled Tuesday Blitz March 07 Early 2023"]
[White "Fajdetic, Hrvoje"]
[Black "Bozorov, Makhsum"]
[WhiteFideId "14501945"]
[BlackFideId "14201330"]
[WhiteElo "2185"]
[BlackElo "2461"]
[Result "0-1"]
[Round "02"]
[TimeControl "180+2"]
[Date "2023.03.07"]
[WhiteClock "0:00:25"]
[BlackClock "0:00:09"]

1. d4 {[%clk 0:02:59]}  Nf6 {[%clk 0:02:59]} 2. Bf4 {[%clk 0:02:59]}  c5 {[%clk 0:02:56]} 3. e3 {[%clk 0:02:58]}  g6 {[%clk 0:02:55]} 4. c3 {[%clk 0:02:44]}  Bg7 {[%clk 0:02:56]} 5. Nd2 {[%clk 0:02:43]}  O-O {[%clk 0:02:54]} 6. Ngf3 {[%clk 0:02:42]}  d6 {[%clk 0:02:50]} 7. h3 {[%clk 0:02:42]}  Nc6 {[%clk 0:02:50]} 8. Be2 {[%clk 0:02:42]}  Qb6 {[%clk 0:02:50]} 9. Nc4 {[%clk 0:02:41]}  Qd8 {[%clk 0:02:22]} 10. a4 {[%clk 0:02:36]}  Be6 {[%clk 0:02:14]} 11. Qb1 {[%clk 0:02:26]}  Rc8 {[%clk 0:02:06]} 12. Ng5 {[%clk 0:02:21]}  Bxc4 {[%clk 0:02:00]} 13. Bxc4 {[%clk 0:02:22]}  cxd4 {[%clk 0:02:01]} 14. exd4 {[%clk 0:02:20]}  h6 {[%clk 0:01:46]} 15. Nf3 {[%clk 0:02:19]}  Nxd4 {[%clk 0:01:37]} 16. Bxf7+ {[%clk 0:02:18]}  Rxf7 {[%clk 0:01:38]} 17. cxd4 {[%clk 0:02:17]}  g5 {[%clk 0:01:32]} 18. Be3 {[%clk 0:02:13]}  Qa5+ {[%clk 0:01:16]} 19. Bd2 {[%clk 0:02:11]}  Qd5 {[%clk 0:01:17]} 20. O-O {[%clk 0:02:09]}  Ne4 {[%clk 0:01:17]} 21. Be3 {[%clk 0:02:07]}  Rcf8 {[%clk 0:01:06]} 22. Qa2 {[%clk 0:02:06]}  Qxa2 {[%clk 0:01:00]} 23. Rxa2 {[%clk 0:02:07]}  Rc8 {[%clk 0:01:00]} 24. b4 {[%clk 0:01:56]}  Rff8 {[%clk 0:00:59]} 25. Re1 {[%clk 0:01:43]}  Bf6 {[%clk 0:00:48]} 26. Rc1 {[%clk 0:01:28]}  Rxc1+ {[%clk 0:00:47]} 27. Bxc1 {[%clk 0:01:29]}  Rc8 {[%clk 0:00:47]} 28. Be3 {[%clk 0:01:28]}  Rc4 {[%clk 0:00:43]} 29. Rb2 {[%clk 0:01:26]}  Kf7 {[%clk 0:00:40]} 30. Kf1 {[%clk 0:01:25]}  Ke6 {[%clk 0:00:37]} 31. Ke2 {[%clk 0:01:23]}  Kd5 {[%clk 0:00:35]} 32. a5 {[%clk 0:01:12]}  Nc3+ {[%clk 0:00:31]} 33. Kd3 {[%clk 0:01:10]}  Nb5 {[%clk 0:00:31]} 34. Rb3 {[%clk 0:00:39]}  Bxd4 {[%clk 0:00:25]} 35. Nxd4 {[%clk 0:00:39]}  Nxd4 {[%clk 0:00:25]} 36. Bxd4 {[%clk 0:00:38]}  Rxd4+ {[%clk 0:00:26]} 37. Ke3 {[%clk 0:00:38]}  e5 {[%clk 0:00:25]} 38. f3 {[%clk 0:00:33]}  Kc4 {[%clk 0:00:21]} 39. Rb1 {[%clk 0:00:31]}  Kb5 {[%clk 0:00:22]} 40. h4 {[%clk 0:00:27]}  Rxh4 {[%clk 0:00:19]} 41. g4 {[%clk 0:00:26]}  Rh2 {[%clk 0:00:16]} 42. Rd1 {[%clk 0:00:26]}  Rb2 {[%clk 0:00:15]} 43. Rxd6 {[%clk 0:00:26]}  Rxb4 {[%clk 0:00:14]} 44. Rd5+ {[%clk 0:00:25]}  Ka4 {[%clk 0:00:09]} 45. Rxe5 {[%clk 0:00:26]}  Rb5 {[%clk 0:00:10]} 46. Re7 {[%clk 0:00:26]}  Kxa5 {[%clk 0:00:10]} 47. Rh7 {[%clk 0:00:27]}  Rb6 {[%clk 0:00:09]} 48. Rh8 {[%clk 0:00:26]}  Kb5 {[%clk 0:00:09]} 49. Ra8 {[%clk 0:00:27]}  a5 {[%clk 0:00:10]} 50. f4 {[%clk 0:00:28]}  gxf4+ {[%clk 0:00:09]} 51. Kxf4 {[%clk 0:00:29]}  Kb4 {[%clk 0:00:09]} 52. Ke3 {[%clk 0:00:28]}  a4 {[%clk 0:00:09]} 53. Kd2 {[%clk 0:00:28]}  Rc6 {[%clk 0:00:10]} 54. Ra7 {[%clk 0:00:27]}  b5 {[%clk 0:00:09]} 55. Kd1 {[%clk 0:00:27]}  Kb3 {[%clk 0:00:09]} 56. Ra5 {[%clk 0:00:25]}  b4 {[%clk 0:00:09]} 57. Kd2 {[%clk 0:00:26]}  a3 {[%clk 0:00:10]} 58. Kd1 {[%clk 0:00:26]}  a2 {[%clk 0:00:10]} 59. Kd2 {[%clk 0:00:25]}  Kb2 {[%clk 0:00:10]} 60. g5 {[%clk 0:00:25]}  hxg5 {[%clk 0:00:09]} 0-1


[Site "https://www.chess.com"]

[Event "Titled Tuesday Blitz March 07 Early 2023"]
[White "Zacurdajev, Dmitry"]
[Black "Torres Dominguez, David"]
[WhiteFideId "4196309"]
[BlackFideId "2220857"]
[WhiteElo "2179"]
[BlackElo "1999"]
[Result "0-1"]
[Round "02"]
[TimeControl "180+2"]
[Date "2023.03.07"]
[WhiteClock "0:00:03"]
[BlackClock "0:00:33"]

1. d4 {[%clk 0:03:00]}  e5 {[%clk 0:02:56]} 2. dxe5 {[%clk 0:03:00]}  d6 {[%clk 0:02:56]} 3. Nf3 {[%clk 0:02:59]}  Bg4 {[%clk 0:02:55]} 4. Bf4 {[%clk 0:02:50]}  Nc6 {[%clk 0:02:54]} 5. exd6 {[%clk 0:02:49]}  Qf6 {[%clk 0:02:55]} 6. d7+ {[%clk 0:02:16]}  Bxd7 {[%clk 0:02:51]} 7. Bc1 {[%clk 0:02:16]}  O-O-O {[%clk 0:02:49]} 8. Nbd2 {[%clk 0:02:12]}  g5 {[%clk 0:02:44]} 9. Ne4 {[%clk 0:02:07]}  Qg6 {[%clk 0:02:40]} 10. Nexg5 {[%clk 0:01:59]}  Bf5 {[%clk 0:02:29]} 11. Bd2 {[%clk 0:01:56]}  Bh6 {[%clk 0:02:27]} 12. e4 {[%clk 0:01:34]}  Bxe4 {[%clk 0:02:21]} 13. Nxe4 {[%clk 0:01:31]}  Qxe4+ {[%clk 0:02:20]} 14. Qe2 {[%clk 0:01:31]}  Bxd2+ {[%clk 0:02:19]} 15. Nxd2 {[%clk 0:01:30]}  Qxc2 {[%clk 0:02:16]} 16. Nc4 {[%clk 0:01:18]}  Qf5 {[%clk 0:02:06]} 17. g3 {[%clk 0:00:43]}  Nf6 {[%clk 0:01:59]} 18. Bg2 {[%clk 0:00:39]}  Rhe8 {[%clk 0:01:52]} 19. Ne3 {[%clk 0:00:40]}  Qa5+ {[%clk 0:01:48]} 20. Kf1 {[%clk 0:00:40]}  Rd2 {[%clk 0:01:44]} 21. Qe1 {[%clk 0:00:35]}  Nd4 {[%clk 0:01:29]} 22. Rd1 {[%clk 0:00:26]}  Qa6+ {[%clk 0:01:23]} 23. Kg1 {[%clk 0:00:19]}  Ne2+ {[%clk 0:01:23]} 24. Kf1 {[%clk 0:00:19]}  Nxg3+ {[%clk 0:01:17]} 25. Kg1 {[%clk 0:00:19]}  Ne2+ {[%clk 0:01:14]} 26. Kf1 {[%clk 0:00:19]}  Nc3+ {[%clk 0:01:00]} 27. Kg1 {[%clk 0:00:16]}  Ne2+ {[%clk 0:00:57]} 28. Kf1 {[%clk 0:00:16]}  Nd4+ {[%clk 0:00:55]} 29. Kg1 {[%clk 0:00:16]}  Rg8 {[%clk 0:00:46]} 30. Ng4 {[%clk 0:00:05]}  Rxg4 {[%clk 0:00:33]} 31. Qxd2 {[%clk 0:00:03]} 0-1


[Site "https://www.chess.com"]